fUSD/lending_fUSD_20250112
["ID","MTS","AMOUNT","RATE_DAILY","PERIOD"]
[348638685,1736695832191,-500.0,9.863e-05,2]
[348638686,1736695832201,-500.0,9.863e-05,2]
[348638687,1736695832210,-500.0,9.863e-05,2]
[348638688,1736695832220,-500.0,9.863e-05,2]
[348638689,1736695832229,-500.83026792,9.863e-05,2]
[348638690,1736695832239,-500.0,9.863e-05,2]
[348638691,1736695832248,-500.0,9.863e-05,2]
[348638692,1736695832258,-500.0,9.863e-05,2]
[348638693,1736695832269,-500.0,9.863e-05,2]
[348638694,1736695832279,-500.0,9.863e-05,2]
[348638695,1736695832290,-500.0,9.863e-05,2]
[348638696,1736695832299,-500.0,9.863e-05,2]
[348638697,1736695832309,-500.0,9.863e-05,2]
[348638698,1736695832319,-500.0,9.863e-05,2]
[348638699,1736695832328,-500.0,9.863e-05,2]
[348638700,1736695832338,-518.75,9.863e-05,2]
[348638702,1736695832348,-500.0,9.863e-05,2]
[348638704,1736695832357,-676.27,9.863e-05,2]
[348638706,1736695832367,-193.7229987,9.863e-05,2]
[348638708,1736695832376,-500.0,9.863e-05,2]
[348638709,1736695832385,-500.0,9.863e-05,2]
[348638711,1736695832395,-500.0,9.863e-05,2]
[348638713,1736695832404,-500.0,9.863e-05,2]
[348638715,1736695832414,-500.0,9.863e-05,2]
[348638717,1736695832423,-489.48497756,9.863e-05,2]
[348638718,1736695832433,-664.01,9.863e-05,2]
[348638719,1736695832442,-500.35394367,9.863e-05,2]
[348638721,1736695832451,-500.0,9.863e-05,2]
[348638723,1736695832461,-500.0,9.863e-05,2]
[348638725,1736695832470,-500.0,9.863e-05,2]
[348638726,1736695832480,-500.0,9.863e-05,2]
[348638727,1736695832489,-592.32,9.863e-05,2]
[348638728,1736695832499,-500.0,9.863e-05,2]
[348638730,1736695832508,-500.0,9.863e-05,2]
[348638732,1736695832518,-500.0,9.863e-05,2]
[348638733,1736695832527,-500.0,9.863e-05,2]
[348638734,1736695832537,-500.0,9.863e-05,2]
[348638735,1736695832547,-500.0,9.863e-05,2]
[348638736,1736695832556,-500.0,9.863e-05,2]
[348638737,1736695832566,-500.0,9.863e-05,2]
[348638738,1736695832576,-500.0,9.863e-05,2]
[348638739,1736695832585,-500.0,9.863e-05,2]
[348638740,1736695832594,-500.0,9.863e-05,2]
[348638741,1736695832604,-500.0,9.863e-05,2]
[348638742,1736695832613,-500.0,9.863e-05,2]
[348638743,1736695832622,-500.0,9.863e-05,2]
[348638744,1736695832632,-500.0,9.863e-05,2]
[348638745,1736695832642,-768.63,9.863e-05,2]
[348638746,1736695832651,-541.24,9.863e-05,2]
[348638747,1736695832660,-500.0,9.863e-05,2]
[348638748,1736695832669,-500.0,9.863e-05,2]
[348638749,1736695832679,-669.24,9.863e-05,2]
[348638750,1736695832689,-500.0,9.863e-05,2]
[348638751,1736695832698,-500.0,9.863e-05,2]
[348638752,1736695832707,-1026.6,9.863e-05,2]
[348638753,1736695832716,-500.0,9.863e-05,2]
[348638754,1736695832727,-500.0,9.863e-05,2]
[348638755,1736695832736,-709.02,9.863e-05,2]
[348638756,1736695832745,-500.0,9.863e-05,2]
[348638757,1736695832755,-500.0,9.863e-05,2]
[348638758,1736695832766,-500.0,9.863e-05,2]
[348638759,1736695832775,-500.0,9.863e-05,2]
[348638760,1736695832786,-530.63,9.863e-05,2]
[348638761,1736695832796,-500.0,9.863e-05,2]
[348638762,1736695832806,-500.0,9.863e-05,2]
[348638763,1736695832816,-500.0,9.863e-05,2]
[348638764,1736695832826,-500.0,9.863e-05,2]
[348638765,1736695832837,-500.0,9.863e-05,2]
[348638766,1736695832847,-826.22,9.863e-05,2]
[348638767,1736695832857,-500.0,9.863e-05,2]
[348638768,1736695832866,-500.0,9.863e-05,2]
[348638769,1736695832876,-500.0,9.863e-05,2]
[348638770,1736695832885,-500.0,9.863e-05,2]
[348638771,1736695832895,-740.47,9.863e-05,2]
[348638772,1736695832905,-500.0,9.863e-05,2]
[348638773,1736695832919,-500.0,9.863e-05,2]
[348638774,1736695832928,-500.0,9.863e-05,2]
[348638775,1736695832938,-500.0,9.863e-05,2]
[348638776,1736695832947,-500.0,9.863e-05,2]
[348638777,1736695832956,-500.0,9.863e-05,2]
[348638778,1736695832967,-776.83,9.863e-05,2]
[348638779,1736695832979,-622.33,9.863e-05,2]
[348638780,1736695832988,-622.26,9.863e-05,2]
[348638781,1736695832998,-500.0,9.863e-05,2]
[348638782,1736695833008,-500.0,9.863e-05,2]
[348638783,1736695833018,-500.0,9.863e-05,2]
[348638784,1736695833028,-500.0,9.863e-05,2]
[348638785,1736695833038,-687.98,9.863e-05,2]
[348638786,1736695833047,-180.1522927,9.863e-05,2]
[348638787,1736695833057,-1422.1,9.863e-05,2]
[348638788,1736695833067,-500.0,9.863e-05,2]
[348638789,1736695833077,-500.0,9.863e-05,2]
[348638790,1736695833086,-646.31,9.863e-05,2]
[348638791,1736695833096,-500.0,9.863e-05,2]
[348638792,1736695833106,-588.83,9.863e-05,2]
[348638793,1736695833116,-500.0,9.863e-05,2]
[348638794,1736695833126,-500.0,9.863e-05,2]
[348638795,1736695833135,-661.34,9.863e-05,2]
[348638796,1736695833145,-500.0,9.863e-05,2]
[348638797,1736695833155,-500.0,9.863e-05,2]
[348638798,1736695833165,-500.0,9.863e-05,2]
[348638799,1736695833175,-500.0,9.863e-05,2]
[348638800,1736695833185,-500.0,9.863e-05,2]
[348638801,1736695833195,-157.66947827,9.863e-05,2]
[348638802,1736695833205,-500.0,9.863e-05,2]
[348638803,1736695833215,-500.0,9.863e-05,2]
[348638804,1736695833225,-513.85,9.863e-05,2]
[348638805,1736695833235,-500.0,9.863e-05,2]
[348638806,1736695833245,-581.77,9.863e-05,2]
[348638807,1736695833255,-917.9,9.863e-05,2]
[348638808,1736695833265,-500.0,9.863e-05,2]
[348638809,1736695833275,-500.0,9.863e-05,2]
[348638810,1736695833285,-500.0,9.863e-05,2]
[348638811,1736695833294,-272.91925365,9.863e-05,2]
[348638812,1736695833304,-500.0,9.863e-05,2]
[348638813,1736695833314,-500.0,9.863e-05,2]
[348638814,1736695833324,-500.0,9.863e-05,2]
[348638815,1736695833333,-500.0,9.863e-05,2]
[348638816,1736695833343,-500.0,9.863e-05,2]
[348638817,1736695833353,-500.0,9.863e-05,2]
[348638818,1736695833362,-290.63764367,9.863e-05,2]
[348638819,1736695833372,-782.9,9.863e-05,2]
[348638820,1736695833381,-393.11159803,9.863e-05,2]
[348638821,1736695833391,-1368.2,9.863e-05,2]
[348638822,1736695833401,-532.86,9.863e-05,2]
[348638823,1736695833410,-852.07,9.863e-05,2]
[348638824,1736695833420,-500.0,9.863e-05,2]
[348638825,1736695833430,-745.7,9.863e-05,2]
[348638826,1736695833440,-417.30515528,9.863e-05,2]
[348638827,1736695833450,-500.0,9.863e-05,2]
[348638828,1736695833459,-500.0,9.863e-05,2]
[348638829,1736695833469,-2187.12,9.863e-05,2]
[348638830,1736695833480,-500.0,9.863e-05,2]
[348638831,1736695833491,-795.19,9.863e-05,2]
[348638832,1736695833500,-500.0,9.863e-05,2]
[348638833,1736695833510,-1670.28,9.863e-05,2]
[348638834,1736695833520,-1901.75,9.863e-05,2]
[348638835,1736695833530,-500.0,9.863e-05,2]
[348638836,1736695833540,-796.9,9.863e-05,2]
[348638837,1736695833550,-409.61649709,9.863e-05,2]
[348638838,1736695833560,-513.92334594,9.863e-05,2]
[348638839,1736695833569,-6981.02,9.863e-05,2]
[348638840,1736695833579,-500.0,9.863e-05,2]
[348638841,1736695833589,-500.0,9.863e-05,2]
[348638842,1736695833599,-500.0,9.863e-05,2]
[348638843,1736695833608,-500.0,9.863e-05,2]
[348638844,1736695833618,-2070.01,9.863e-05,2]
[348638845,1736695833627,-811.46,9.863e-05,2]
[348638846,1736695833637,-500.0,9.863e-05,2]
[348638847,1736695833647,-731.54,9.863e-05,2]
[348638848,1736695833657,-500.0,9.863e-05,2]
[348638849,1736695833667,-599.72,9.863e-05,2]
[348638850,1736695833676,-500.90416506,9.863e-05,2]
[348638851,1736695833686,-682.55,9.863e-05,2]
[348638852,1736695833695,-550.56,9.863e-05,2]
[348638853,1736695833706,-303.35250534,9.863e-05,2]
[348638854,1736695833716,-1005.05,9.863e-05,2]
[348638855,1736695833726,-500.0,9.863e-05,2]
[348638856,1736695833736,-1535.51,9.863e-05,2]
[348638857,1736695833746,-500.0,9.863e-05,2]
[348638858,1736695833756,-500.0,9.863e-05,2]
[348638859,1736695833770,-500.0,9.863e-05,2]
[348638860,1736695833780,-1952.66,9.863e-05,2]
[348638861,1736695833790,-548.46,9.863e-05,2]
[348638862,1736695833800,-3527.24,9.863e-05,2]
[348638863,1736695833810,-500.0,9.863e-05,2]
[348638864,1736695833819,-500.0,9.863e-05,2]
[348638865,1736695833828,-500.0,9.863e-05,2]
[348638866,1736695833838,-500.0,9.863e-05,2]
[348638867,1736695833848,-500.0,9.863e-05,2]
[348638868,1736695834113,-500.0,9.863e-05,2]
[348638869,1736695834123,-500.0,9.863e-05,2]
[348638870,1736695834133,-1189.71,9.863e-05,2]
[348638871,1736695834143,-544.98,9.863e-05,2]
[348638872,1736695834153,-746.81,9.863e-05,2]
[348638873,1736695834162,-1996.88,9.863e-05,2]
[348638874,1736695834172,-500.0,9.863e-05,2]
[348638875,1736695834182,-511.71549391,9.863e-05,2]
[348638876,1736695834191,-500.0,9.863e-05,2]
[348638877,1736695834200,-633.812308,9.863e-05,2]
[348638878,1736695834209,-1149.21,9.863e-05,2]
[348638879,1736695834219,-500.0,9.863e-05,2]
[348638880,1736695834229,-712.86,9.863e-05,2]
[348638881,1736695834238,-159.45997,9.863e-05,2]
[348638882,1736695834247,-2544.0,9.863e-05,2]
[348638883,1736695834257,-157.495987,9.863e-05,2]
[348638884,1736695834266,-240.54567727,9.863e-05,2]
[348638885,1736695834276,-500.0,9.863e-05,2]
[348638886,1736695834285,-655.77,9.863e-05,2]
[348638887,1736695834295,-810.85,9.863e-05,2]
[348638888,1736695834304,-500.0,9.863e-05,2]
[348638889,1736695834315,-702.88,9.863e-05,2]
[348638890,1736695834324,-2784.66,9.863e-05,2]
[348638891,1736695834333,-500.0,9.863e-05,2]
[348638892,1736695834343,-500.0,9.863e-05,2]
[348638893,1736695834356,-3070.49,9.863e-05,2]
[348638894,1736695834366,-582.37125,9.863e-05,2]
[348638895,1736695834376,-734.66,9.863e-05,2]
[348638896,1736695834385,-1767.0,9.863e-05,2]
[348638897,1736695834395,-500.0,9.863e-05,2]
[348638898,1736695834405,-500.0,9.863e-05,2]
[348638899,1736695834415,-2758.95,9.863e-05,2]
[348638900,1736695834424,-156.32239,9.863e-05,2]
[348638901,1736695834434,-500.0,9.863e-05,2]
[348638902,1736695834443,-500.0,9.863e-05,2]
[348638903,1736695834452,-500.0,9.863e-05,2]
[348638904,1736695834462,-500.0,9.863e-05,2]
[348638905,1736695834472,-1388.92,9.863e-05,2]
[348638906,1736695834482,-500.0,9.863e-05,2]
[348638907,1736695834492,-1025.0,9.863e-05,2]
[348638908,1736695834502,-981.75,9.863e-05,2]
[348638909,1736695834512,-500.0,9.863e-05,2]
[348638910,1736695834521,-29698.10786789,9.864e-05,2]
[348638911,1736695834538,-537.16533982,9.864e-05,2]
[348638912,1736695834549,-839.4699975,9.864e-05,2]
[348638913,1736695834561,-536.53579096,9.864e-05,2]
[348638914,1736695834572,-109415.24928762,9.864e-05,2]
[348638915,1736695834583,-56729.97495756,9.864e-05,2]
[348638916,1736695834615,-121809.32135865,9.864e-05,2]
[348638917,1736695834625,-35745.1019,9.864e-05,2]
[348638918,1736695834635,-1685.793,9.864e-05,2]
[348638919,1736695834644,-36121.6084,9.865e-05,2]
[348638920,1736695834654,-3767.1346,9.865e-05,2]
[348638921,1736695834663,-584.27805932,9.882e-05,2]
[348638922,1736695834673,-5666.3373,9.9e-05,2]
[348638923,1736695834683,-11963.8475,9.9e-05,2]
[348638924,1736695834692,-500.0,9.9e-05,2]
[348638925,1736695834702,-7981.7527,9.9e-05,2]
[348638926,1736695834713,-584.27805932,9.941e-05,2]
[348638927,1736695834722,-1947.6947,9.945e-05,2]
[348638928,1736695834732,-500.0,9.963e-05,2]
[348638929,1736695834742,-692.35,9.963e-05,2]
[348638930,1736695834752,-500.0,9.963e-05,2]
[348638931,1736695834761,-1320.32,9.963e-05,2]
[348638932,1736695834771,-500.0,9.964e-05,2]
[348638933,1736695834781,-500.0,9.964e-05,2]
[348638934,1736695834790,-500.0,9.964e-05,2]
[348638935,1736695834800,-500.0,9.964e-05,2]
[348638936,1736695834809,-500.0,9.964e-05,2]
[348638937,1736695834820,-397.39242271,9.964e-05,2]
[348638938,1736695834840,-102.60757729,9.964e-05,2]
[348638939,1736695834850,-500.0,9.964e-05,2]
[348638940,1736695834859,-203.00938348,9.964e-05,2]
[348638941,1736695834900,-299.81403883,9.964e-05,2]
[348638942,1736695834911,-255.00074434,9.964e-05,2]
[348638943,1736695836454,-2183.95,0.000122,31]
[348638944,1736695836480,-2183.95,0.000122,31]
[348638945,1736695836504,-2183.95,0.000122,31]
[348638946,1736695836528,-2183.95,0.000122,31]
[348638947,1736695836552,-2183.95,0.000122,31]
[348638948,1736695836576,-2183.95,0.000122,31]
[348638949,1736695836600,-2183.95,0.000122,31]
[348638950,1736695836624,-2183.95,0.000122,31]
[348638951,1736695836647,-2183.95,0.000122,31]
[348638952,1736695836671,-2183.95,0.000122,31]
[348638953,1736695836695,-2183.95,0.000122,31]
[348638954,1736695836719,-2183.95,0.000122,31]
[348638955,1736695836743,-2183.95,0.000122,31]
[348638956,1736695836768,-2183.95,0.000122,31]
[348638957,1736695836792,-2183.95,0.000122,31]
[348638958,1736695836817,-2183.95,0.000122,31]
[348638966,1736695837689,-500.0,9.862e-05,2]
[348638967,1736695837698,-244.99925566,9.964e-05,2]
[348638968,1736695837708,-500.0,9.964e-05,2]
[348638969,1736695837717,-559.0,9.964e-05,2]
[348638970,1736695837727,-500.0,9.964e-05,2]
[348638971,1736695837737,-681.82,9.964e-05,2]
[348638972,1736695837746,-500.0,9.964e-05,2]
[348638973,1736695837755,-500.0,9.964e-05,2]
[348638974,1736695837765,-500.0,9.964e-05,2]
[348638975,1736695837774,-500.0,9.964e-05,2]
[348638976,1736695837783,-726.94,9.964e-05,2]
[348638977,1736695837792,-500.0,9.964e-05,2]
[348638978,1736695837802,-500.0,9.964e-05,2]
[348638979,1736695837811,-500.0,9.964e-05,2]
[348638980,1736695837819,-518.86,9.964e-05,2]
[348638981,1736695837829,-500.0,9.964e-05,2]
[348638982,1736695837838,-500.0,9.964e-05,2]
[348638983,1736695837847,-579.32,9.964e-05,2]
[348638984,1736695837856,-500.0,9.964e-05,2]
[348638985,1736695837865,-569.83,9.964e-05,2]
[348638986,1736695837874,-500.0,9.964e-05,2]
[348638987,1736695837883,-546.47,9.964e-05,2]
[348638988,1736695837892,-500.0,9.964e-05,2]
[348638989,1736695837901,-500.0,9.964e-05,2]
[348638990,1736695837910,-500.0,9.964e-05,2]
[348638991,1736695837920,-500.0,9.964e-05,2]
[348638992,1736695837929,-500.0,9.964e-05,2]
[348638993,1736695837938,-568.04,9.964e-05,2]
[348638994,1736695837947,-500.0,9.964e-05,2]
[348638995,1736695837956,-500.0,9.964e-05,2]
[348638996,1736695837968,-500.0,9.964e-05,2]
[348638997,1736695837978,-500.0,9.964e-05,2]
[348638998,1736695837991,-500.0,9.964e-05,2]
[348638999,1736695838001,-500.0,9.964e-05,2]
[348639000,1736695838010,-500.0,9.964e-05,2]
[348639001,1736695838020,-500.0,9.964e-05,2]
[348639002,1736695838029,-500.0,9.964e-05,2]
[348639003,1736695838039,-513.06,9.964e-05,2]
[348639005,1736695838049,-610.19,9.964e-05,2]
[348639007,1736695838061,-697.33,9.964e-05,2]
[348639009,1736695838070,-500.0,9.964e-05,2]
[348639011,1736695838079,-500.0,9.964e-05,2]
[348639012,1736695838088,-500.0,9.964e-05,2]
[348639014,1736695838098,-500.0,9.964e-05,2]
[348639015,1736695838108,-500.0,9.964e-05,2]
[348639016,1736695838117,-500.0,9.964e-05,2]
[348639018,1736695838127,-500.0,9.964e-05,2]
[348639019,1736695838138,-500.0,9.964e-05,2]
[348639020,1736695838148,-814.14,9.964e-05,2]
[348639021,1736695838157,-16.27482554,9.964e-05,2]
[348639022,1736695838169,-732.50517446,9.964e-05,2]
[348639023,1736695838179,-1019.23,9.964e-05,2]
[348639024,1736695838188,-767.17,9.964e-05,2]
[348639025,1736695838198,-213.41351292,9.964e-05,2]
[348639026,1736695838213,-286.58648708,9.964e-05,2]
[348639027,1736695838223,-500.0,9.964e-05,2]
[348639028,1736695838237,-500.0,9.964e-05,2]
[348639029,1736695838247,-500.0,9.964e-05,2]
[348639030,1736695838257,-500.0,9.964e-05,2]
[348639031,1736695838267,-500.0,9.964e-05,2]
[348639032,1736695838276,-500.0,9.964e-05,2]
[348639033,1736695838286,-520.95,9.964e-05,2]
[348639034,1736695838296,-500.0,9.964e-05,2]
[348639035,1736695838305,-500.0,9.964e-05,2]
[348639036,1736695838314,-500.0,9.964e-05,2]
[348639037,1736695838324,-500.0,9.964e-05,2]
[348639038,1736695838334,-591.55,9.964e-05,2]
[348639039,1736695838343,-3113.77,9.964e-05,2]
[348639040,1736695838352,-544.4,9.964e-05,2]
[348639041,1736695838362,-500.0,9.964e-05,2]
[348639042,1736695838373,-609.35,9.964e-05,2]
[348639043,1736695838382,-500.0,9.964e-05,2]
[348639044,1736695838391,-595.3,9.964e-05,2]
[348639045,1736695838401,-500.0,9.964e-05,2]
[348639046,1736695838410,-500.0,9.964e-05,2]
[348639047,1736695838419,-1253.19,9.964e-05,2]
[348639048,1736695838428,-660.16,9.964e-05,2]
[348639049,1736695838437,-500.0,9.965e-05,2]
[348639050,1736695838448,-500.0,9.965e-05,2]
[348639051,1736695838457,-500.0,9.965e-05,2]
[348639052,1736695838466,-500.0,9.965e-05,2]
[348639053,1736695838476,-500.0,9.965e-05,2]
[348639054,1736695838489,-500.0,9.965e-05,2]
[348639055,1736695838499,-500.0,9.965e-05,2]
[348639056,1736695838509,-500.0,9.965e-05,2]
[348639057,1736695838519,-500.0,9.965e-05,2]
[348639058,1736695838529,-500.0,9.965e-05,2]
[348639059,1736695838539,-500.0,9.965e-05,2]
[348639060,1736695838549,-500.0,9.965e-05,2]
[348639061,1736695838558,-500.0,9.965e-05,2]
[348639062,1736695838567,-500.0,9.965e-05,2]
[348639063,1736695838576,-527.52033851,9.965e-05,2]
[348639064,1736695838586,-500.0,9.965e-05,2]
[348639065,1736695838595,-500.0,9.965e-05,2]
[348639066,1736695838605,-500.0,9.965e-05,2]
[348639067,1736695838614,-500.0,9.965e-05,2]
[348639068,1736695838623,-500.0,9.965e-05,2]
[348639069,1736695838633,-500.0,9.965e-05,2]
[348639070,1736695838642,-500.0,9.965e-05,2]
[348639071,1736695838652,-500.0,9.965e-05,2]
[348639072,1736695838661,-500.0,9.965e-05,2]
[348639073,1736695838670,-500.0,9.965e-05,2]
[348639074,1736695838679,-500.0,9.965e-05,2]
[348639075,1736695838688,-500.0,9.965e-05,2]
[348639076,1736695838697,-769.4,9.965e-05,2]
[348639077,1736695838707,-500.0,9.965e-05,2]
[348639078,1736695838716,-735.35,9.965e-05,2]
[348639079,1736695838725,-500.0,9.965e-05,2]
[348639080,1736695838737,-784.91,9.965e-05,2]
[348639081,1736695838746,-500.0,9.965e-05,2]
[348639082,1736695838755,-500.77,9.965e-05,2]
[348639083,1736695838765,-595.68,9.965e-05,2]
[348639084,1736695838774,-500.0,9.965e-05,2]
[348639085,1736695838783,-500.0,9.965e-05,2]
[348639086,1736695838793,-1160.28520055,9.965e-05,3]
[348639087,1736695838802,-950.51,9.965e-05,2]
[348639088,1736695838811,-783.86,9.965e-05,2]
[348639089,1736695838820,-984.19,9.965e-05,2]
[348639090,1736695838830,-8132.5,9.965e-05,2]
[348639091,1736695838839,-1145.08,9.965e-05,2]
[348639092,1736695838848,-1452.18,9.965e-05,2]
[348639093,1736695838857,-1125.09,9.965e-05,2]
[348639094,1736695838869,-500.0,9.966e-05,2]
[348639095,1736695838878,-897.86,9.966e-05,2]
[348639096,1736695838887,-1328.38,9.966e-05,2]
[348639097,1736695838896,-1237.26,9.966e-05,2]
[348639098,1736695838906,-1944.35,9.966e-05,2]
[348639099,1736695838915,-5241.07,9.966e-05,2]
[348639100,1736695838925,-876.96,9.966e-05,2]
[348639101,1736695838935,-579.76,9.966e-05,2]
[348639102,1736695838947,-634.89,9.966e-05,2]
[348639103,1736695838956,-1772.61,9.966e-05,2]
[348639104,1736695838968,-500.0,9.966e-05,2]
[348639105,1736695838978,-732.08,9.966e-05,2]
[348639106,1736695838988,-500.0,9.966e-05,2]
[348639107,1736695838998,-1353.8082472,9.97e-05,2]
[348639108,1736695839008,-490.48679026,9.971e-05,2]
[348639109,1736695839018,-1114.18388249,9.971e-05,2]
[348639110,1736695839027,-100596.02401094,9.971e-05,2]
[348639111,1736695839036,-1114.18388249,9.971e-05,2]
[348639112,1736695839047,-239.62436472,9.971e-05,2]
[348639113,1736695839056,-2942.92074156,9.971e-05,2]
[348639114,1736695839066,-1353.8082472,9.972e-05,2]
[348639115,1736695839075,-500.0,9.972e-05,2]
[348639116,1736695839085,-1353.8082472,9.972e-05,2]
[348639117,1736695839094,-2467.99212969,9.972e-05,2]
[348639118,1736695839103,-3433.40753182,9.972e-05,2]
[348639119,1736695839113,-1353.8082472,9.973e-05,2]
[348639120,1736695839123,-3433.40753182,9.973e-05,2]
[348639121,1736695839132,-20172.9520289,9.973e-05,2]
[348639122,1736695839144,-7201.48838883,9.973e-05,2]
[348639123,1736695839163,-473.77137964,9.973e-05,2]
[348639124,1736695839174,-8506.63481451,9.973e-05,2]
[348639125,1736695839191,-5962.35,9.973e-05,2]
[348639126,1736695839212,-500.0,9.862e-05,2]
[348639127,1736695839222,-37327.745096,9.973e-05,2]
[348639128,1736695839234,-42347.05829212,9.973e-05,2]
[348639129,1736695839244,-2870.0,9.973e-05,2]
[348639130,1736695839253,-3610.0,9.973e-05,2]
[348639131,1736695839263,-500.0,9.973e-05,2]
[348639132,1736695839273,-500.18752387,9.973e-05,2]
[348639133,1736695839283,-500.59236816,9.973e-05,2]
[348639134,1736695839293,-587.23811982,9.973e-05,2]
[348639135,1736695839302,-500.88165732,9.973e-05,2]
[348639136,1736695839312,-151.87169565,9.973e-05,2]
[348639137,1736695839322,-152.86923281,9.973e-05,2]
[348639138,1736695839332,-159.83968,9.973e-05,2]
[348639139,1736695839341,-325.39469927,9.973e-05,2]
[348639140,1736695839351,-151.85407727,9.973e-05,2]
[348639141,1736695839360,-151.86979081,9.973e-05,2]
[348639142,1736695839371,-161.68561281,9.973e-05,2]
[348639143,1736695839380,-151.8635845,9.973e-05,2]
[348639144,1736695839390,-199.71876253,9.973e-05,2]
[348639145,1736695839399,-150.87065605,9.973e-05,2]
[348639146,1736695839408,-251.77744333,9.973e-05,2]
[348639147,1736695839417,-299.65499888,9.973e-05,2]
[348639148,1736695839429,-500.0,9.973e-05,2]
[348639149,1736695839439,-3433.40753182,9.973e-05,2]
[348639150,1736695839449,-500.0,9.973e-05,2]
[348639151,1736695839458,-500.0,9.973e-05,2]
[348639152,1736695839468,-500.0,9.973e-05,2]
[348639153,1736695839478,-500.0,9.973e-05,2]
[348639154,1736695839489,-500.0,9.973e-05,2]
[348639155,1736695839499,-500.0,9.973e-05,2]
[348639156,1736695839509,-500.0,9.973e-05,2]
[348639157,1736695839518,-429.37285989,9.973e-05,2]
[348639158,1736695839528,-500.0,9.973e-05,2]
[348639159,1736695839539,-500.0,9.973e-05,2]
[348639160,1736695839549,-501.41075334,9.973e-05,2]
[348639161,1736695839559,-500.0,9.973e-05,2]
[348639162,1736695839568,-500.0,9.973e-05,2]
[348639163,1736695839579,-500.0,9.973e-05,2]
[348639164,1736695839588,-500.0,9.973e-05,2]
[348639166,1736695839598,-442.13134783,9.973e-05,2]
[348639167,1736695839607,-500.0,9.973e-05,2]
[348639169,1736695839616,-500.0,9.973e-05,2]
[348639171,1736695839626,-500.0,9.973e-05,2]
[348639173,1736695839636,-500.0,9.973e-05,2]
[348639174,1736695839646,-500.0,9.973e-05,2]
[348639175,1736695839656,-500.0,9.973e-05,2]
[348639176,1736695839665,-500.0,9.973e-05,2]
[348639177,1736695839675,-500.0,9.973e-05,2]
[348639178,1736695839684,-500.0,9.973e-05,2]
[348639179,1736695839693,-502.99090073,9.973e-05,2]
[348639180,1736695839703,-500.0,9.973e-05,2]
[348639181,1736695839712,-500.0,9.973e-05,2]
[348639182,1736695839721,-500.0,9.973e-05,2]
[348639183,1736695839730,-500.0,9.973e-05,2]
[348639184,1736695839743,-500.0,9.973e-05,2]
[348639185,1736695839753,-500.0,9.973e-05,2]
[348639186,1736695839762,-500.0,9.973e-05,2]
[348639187,1736695839772,-578.21895945,9.973e-05,2]
[348639188,1736695839781,-500.0,9.973e-05,2]
[348639189,1736695839790,-500.0,9.973e-05,2]
[348639190,1736695839799,-500.0,9.973e-05,2]
[348639191,1736695839809,-250.53422674,9.973e-05,2]
[348639192,1736695839819,-509.59231236,9.973e-05,2]
[348639193,1736695839829,-500.0,9.973e-05,2]
[348639194,1736695839839,-500.0,9.973e-05,2]
[348639195,1736695839849,-500.0,9.973e-05,2]
[348639196,1736695839859,-500.0,9.973e-05,2]
[348639197,1736695839868,-500.0,9.973e-05,2]
[348639198,1736695839878,-500.0,9.973e-05,2]
[348639199,1736695839887,-500.0,9.973e-05,2]
[348639200,1736695839896,-500.0,9.973e-05,2]
[348639201,1736695839906,-500.0,9.973e-05,2]
[348639202,1736695839915,-500.0,9.973e-05,2]
[348639203,1736695839925,-500.0,9.973e-05,2]
[348639204,1736695839934,-500.0,9.973e-05,2]
[348639205,1736695839943,-500.0,9.973e-05,2]
[348639206,1736695839953,-500.0,9.973e-05,2]
[348639207,1736695839962,-500.0,9.973e-05,2]
[348639208,1736695839976,-500.0,9.973e-05,2]
[348639209,1736695839986,-501.24690409,9.973e-05,2]
[348639210,1736695839996,-500.0,9.973e-05,2]
[348639211,1736695840005,-500.0,9.973e-05,2]
[348639212,1736695840015,-500.0,9.973e-05,2]
[348639213,1736695840024,-500.0,9.973e-05,2]
[348639214,1736695840034,-500.0,9.973e-05,2]